[Event "7° Rencontres Internationales des Echecs Francophones"]
[Site "PARIS, France"]
[Date "2019.08.10"]
[Round "11.4"]
[White "David, Alberto"]
[Black "Ternault, Mathieu"]
[Result "1-0"]
[TimeControl "90'+30' + 30seconds/move"]
[WhiteElo "2554"]
[BlackElo "2158"]

1. e4 {[%clk 00:05:05]} {[%emt 00:00:02]} Nc6 {[%clk 00:05:05]} 2. Bb5 {[%clk
00:04:58]} {[%emt 00:00:10]} d5 {[%clk 00:05:06]} {[%emt 00:00:02]} 3. Qe2
{[%clk 00:04:51]} {[%emt 00:00:10]} a6 {[%clk 00:04:45]} {[%emt 00:00:25]} 4.
Bxc6+ {[%clk 00:04:51]} {[%emt 00:00:01]} bxc6 {[%clk 00:04:46]} {[%emt
00:00:02]} 5. Nf3 {[%clk 00:04:49]} {[%emt 00:00:05]} e6 {[%clk 00:04:47]}
{[%emt 00:00:02]} 6. d3 {[%clk 00:04:42]} {[%emt 00:00:09]} h6 {[%clk
00:04:38]} {[%emt 00:00:12]} 7. b3 {[%clk 00:04:30]} {[%emt 00:00:15]} Nf6
{[%clk 00:04:39]} {[%emt 00:00:02]} 8. Bb2 {[%clk 00:04:30]} {[%emt 00:00:04]}
Be7 {[%clk 00:04:39]} {[%emt 00:00:03]} 9. O-O {[%clk 00:04:23]} {[%emt
00:00:09]} O-O {[%clk 00:04:38]} {[%emt 00:00:05]} 10. Nbd2 {[%clk 00:04:21]}
{[%emt 00:00:05]} a5 {[%clk 00:04:29]} {[%emt 00:00:12]} 11. a4 {[%clk
00:04:20]} {[%emt 00:00:04]} Ba6 {[%clk 00:04:31]} {[%emt 00:00:02]} 12. Rfd1
{[%clk 00:04:08]} {[%emt 00:00:14]} Rb8 {[%clk 00:04:32]} {[%emt 00:00:02]} 13.
Ne5 {[%clk 00:04:03]} {[%emt 00:00:08]} Bb7 {[%clk 00:04:12]} {[%emt 00:00:24]}
14. Ndf3 {[%clk 00:03:56]} {[%emt 00:00:09]} c5 {[%clk 00:04:05]} {[%emt
00:00:11]} 15. Qe1 {[%clk 00:03:38]} {[%emt 00:00:21]} Ra8 {[%clk 00:03:40]}
{[%emt 00:00:28]} 16. Bc3 {[%clk 00:03:36]} {[%emt 00:00:05]} c6 {[%clk
00:03:41]} {[%emt 00:00:02]} 17. Nd2 {[%clk 00:03:22]} {[%emt 00:00:17]} Qc7
{[%clk 00:02:47]} {[%emt 00:00:57]} 18. f4 {[%clk 00:03:20]} {[%emt 00:00:04]}
Bd6 {[%clk 00:02:36]} {[%emt 00:00:15]} 19. Qh4 {[%clk 00:03:12]} {[%emt
00:00:10]} d4 {[%clk 00:02:28]} {[%emt 00:00:11]} 20. Bb2 {[%clk 00:03:14]}
{[%emt 00:00:02]} Bxe5 {[%clk 00:02:29]} {[%emt 00:00:02]} 21. fxe5 {[%clk
00:03:16]} {[%emt 00:00:01]} Nd7 {[%clk 00:02:14]} {[%emt 00:00:17]} 22. Ba3
{[%clk 00:03:09]} {[%emt 00:00:10]} Qxe5 {[%clk 00:02:06]} {[%emt 00:00:12]} 23.
Qe7 {[%clk 00:03:02]} {[%emt 00:00:09]} Rad8 {[%clk 00:01:56]} {[%emt
00:00:14]} 24. Nc4 {[%clk 00:03:03]} {[%emt 00:00:02]} Qh5 {[%clk 00:01:19]}
{[%emt 00:00:40]} 25. Rf1 {[%clk 00:02:39]} {[%emt 00:00:27]} Rfe8 {[%clk
00:00:54]} {[%emt 00:00:28]} 26. Qd6 {[%clk 00:02:29]} {[%emt 00:00:12]} f6
{[%clk 00:00:38]} {[%emt 00:00:20]} 27. Nxa5 {[%clk 00:02:21]} {[%emt
00:00:10]} Ba8 {[%clk 00:00:41]} 28. Nc4 {[%clk 00:02:17]} {[%emt 00:00:06]} e5
{[%clk 00:00:14]} {[%emt 00:00:30]} 29. Rf5 {[%clk 00:02:01]} {[%emt 00:00:19]}
Qg4 {[%clk 00:00:11]} {[%emt 00:00:07]} 30. h3 {[%clk 00:01:37]} {[%emt
00:00:26]} Qg3 {[%clk 00:00:13]} {[%emt 00:00:02]} 31. Rf3 {[%clk 00:01:20]}
{[%emt 00:00:20]} Qg5 {[%clk 00:00:15]} 32. Qc7 {[%clk 00:01:21]} {[%emt
00:00:01]} Nf8 {[%clk 00:00:10]} {[%emt 00:00:08]} 33. Nd6 {[%clk 00:01:23]}
Rd7 {[%clk 00:00:11]} {[%emt 00:00:03]} 34. Nxe8 {[%clk 00:01:22]} {[%emt
00:00:04]} Rxc7 {[%clk 00:00:14]} 35. Nxc7 {[%clk 00:01:23]} {[%emt 00:00:01]}
Bb7 {[%clk 00:00:06]} {[%emt 00:00:11]} 36. a5 {[%clk 00:01:19]} {[%emt
00:00:07]} Qd2 {[%clk 00:00:08]} 37. Bxc5 {[%clk 00:01:13]} {[%emt 00:00:09]}
Qxc2 {[%clk 00:00:09]} {[%emt 00:00:02]} 38. b4 {[%clk 00:01:15]} Nd7 {[%clk
00:00:10]} {[%emt 00:00:02]} 39. a6 {[%clk 00:00:59]} {[%emt 00:00:19]} Nxc5
{[%clk 00:00:09]} {[%emt 00:00:05]} 40. bxc5 {[%clk 00:00:56]} {[%emt
00:00:05]} Qc3 {[%clk 00:00:06]} {[%emt 00:00:06]} 41. Rb1 {[%clk 00:00:31]}
{[%emt 00:00:28]} Bxa6 {[%clk 00:00:06]} {[%emt 00:00:03]} 42. Nxa6 {[%clk
00:00:33]} {[%emt 00:00:02]} Qa3 {[%clk 00:00:08]} 43. Nb4 {[%clk 00:00:32]}
{[%emt 00:00:03]} Qa4 {[%clk 00:00:09]} {[%emt 00:00:02]} 44. Rf2 {[%clk
00:00:29]} {[%emt 00:00:05]} Qb5 {[%clk 00:00:09]} {[%emt 00:00:04]} 45. Rc2
{[%clk 00:00:29]} {[%emt 00:00:02]} Kh7 {[%clk 00:00:11]} {[%emt 00:00:01]} 46.
Rc4 {[%clk 00:00:30]} {[%emt 00:00:03]} Qb7 {[%clk 00:00:12]} {[%emt 00:00:02]}
47. Ra1 {[%clk 00:00:30]} {[%emt 00:00:02]} h5 {[%clk 00:00:13]} {[%emt
00:00:03]} 48. Ra6 {[%clk 00:00:31]} h4 {[%clk 00:00:13]} {[%emt 00:00:04]} 49.
Rxc6 {[%clk 00:00:31]} {[%emt 00:00:03]} Qf7 {[%clk 00:00:13]} {[%emt
00:00:03]} 50. Ra6 {[%clk 00:00:30]} {[%emt 00:00:03]} Qg6 {[%clk 00:00:15]}
{[%emt 00:00:02]} 51. Ra1 {[%clk 00:00:29]} {[%emt 00:00:04]} f5 {[%emt
00:00:09]} 52. c6 {[%clk 00:00:27]} {[%emt 00:00:03]} f4 {[%clk 00:00:12]}
{[%emt 00:00:02]} 53. Rf1 {[%clk 00:00:19]} {[%emt 00:00:11]} Qg3 {[%clk
00:00:09]} {[%emt 00:00:06]} 54. c7 {[%clk 00:00:18]} {[%emt 00:00:03]} Qe3+
{[%clk 00:00:11]} {[%emt 00:00:01]} 55. Kh1 {[%clk 00:00:19]} {[%emt 00:00:03]}
Qe2 {[%clk 00:00:06]} {[%emt 00:00:08]} 56. Rf3 {[%clk 00:00:18]} {[%emt
00:00:03]} 1-0

[Event "7° Rencontres Internationales des Echecs Francophones"]
[Site "PARIS, France"]
[Date "2019.08.10"]
[Round "11.1"]
[White "Dardha, Daniel"]
[Black "Gurevich, Mikhail"]
[Result "1/2-1/2"]
[TimeControl "90'+30' + 30seconds/move"]
[WhiteElo "2390"]
[BlackElo "2559"]

1. d4 {[%clk 00:05:04]} d6 {[%clk 00:05:05]} {[%emt 00:00:01]} 2. e4 {[%clk
00:05:06]} Nf6 {[%clk 00:05:07]} {[%emt 00:00:02]} 3. Nc3 {[%clk 00:05:08]}
{[%emt 00:00:01]} g6 {[%clk 00:05:09]} 4. g3 {[%clk 00:05:10]} {[%emt
00:00:02]} Bg7 {[%clk 00:05:09]} {[%emt 00:00:02]} 5. Bg2 {[%clk 00:05:12]}
{[%emt 00:00:01]} O-O {[%clk 00:05:09]} {[%emt 00:00:03]} 6. Nge2 {[%clk
00:05:14]} {[%emt 00:00:02]} e5 {[%clk 00:05:10]} {[%emt 00:00:02]} 7. O-O
{[%clk 00:05:15]} {[%emt 00:00:02]} c6 {[%clk 00:05:00]} {[%emt 00:00:13]} 8.
a4 {[%clk 00:05:16]} {[%emt 00:00:02]} a5 {[%clk 00:04:55]} {[%emt 00:00:08]} 9.
h3 {[%clk 00:05:16]} {[%emt 00:00:02]} Na6 {[%clk 00:04:56]} {[%emt 00:00:03]}
10. Be3 {[%clk 00:05:15]} {[%emt 00:00:04]} Re8 {[%clk 00:04:50]} {[%emt
00:00:09]} 11. g4 {[%clk 00:05:04]} {[%emt 00:00:13]} Nb4 {[%clk 00:03:06]}
{[%emt 00:01:48]} 12. Ng3 {[%clk 00:05:05]} {[%emt 00:00:02]} Be6 {[%clk
00:02:52]} {[%emt 00:00:16]} 13. f4 {[%clk 00:04:46]} {[%emt 00:00:22]} Bc4
{[%clk 00:02:46]} {[%emt 00:00:10]} 14. Rf2 {[%clk 00:04:33]} {[%emt 00:00:15]}
exd4 {[%clk 00:02:33]} {[%emt 00:00:18]} 15. Bxd4 {[%clk 00:04:35]} c5 {[%clk
00:02:34]} {[%emt 00:00:02]} 16. Bxf6 {[%clk 00:01:44]} {[%emt 00:02:54]} Bxf6
{[%clk 00:02:19]} {[%emt 00:00:18]} 17. Rd2 {[%clk 00:01:08]} {[%emt 00:00:39]}
Bd4+ {[%clk 00:01:35]} {[%emt 00:00:47]} 18. Kh2 {[%clk 00:01:09]} {[%emt
00:00:01]} d5 {[%clk 00:01:30]} {[%emt 00:00:08]} 19. Qf3 {[%clk 00:00:28]}
{[%emt 00:00:45]} Qh4 {[%clk 00:00:41]} {[%emt 00:00:52]} 1/2-1/2

[Event "7° Rencontres Internationales des Echecs Francophones"]
[Site "PARIS, France"]
[Date "2019.08.10"]
[Round "11.9"]
[White "Delorme, Alban"]
[Black "Piscopo, Pierluigi"]
[Result "0-1"]
[TimeControl "90'+30' + 30seconds/move"]
[WhiteElo "2227"]
[BlackElo "2417"]

1. e4 {[%clk 00:05:03]} {[%emt 00:00:02]} c5 {[%clk 00:05:06]} 2. Nf3 {[%clk
00:05:05]} {[%emt 00:00:02]} e6 {[%clk 00:05:08]} 3. d4 {[%clk 00:05:06]}
{[%emt 00:00:02]} cxd4 {[%clk 00:05:10]} 4. Nxd4 {[%clk 00:05:08]} {[%emt
00:00:01]} a6 {[%clk 00:05:13]} 5. Bd3 {[%clk 00:05:10]} Ne7 {[%clk 00:05:13]}
{[%emt 00:00:03]} 6. O-O {[%clk 00:05:07]} {[%emt 00:00:06]} Nbc6 {[%clk
00:05:16]} 7. Nxc6 {[%clk 00:05:01]} {[%emt 00:00:10]} Nxc6 {[%clk 00:05:17]}
{[%emt 00:00:02]} 8. b3 {[%clk 00:04:46]} {[%emt 00:00:18]} Qh4 {[%clk
00:05:01]} {[%emt 00:00:18]} 9. Bb2 {[%clk 00:04:40]} {[%emt 00:00:09]} Bd6
{[%clk 00:05:02]} {[%emt 00:00:02]} 10. g3 {[%clk 00:04:17]} {[%emt 00:00:27]}
Qh3 {[%clk 00:04:51]} {[%emt 00:00:14]} 11. Nd2 {[%clk 00:04:06]} {[%emt
00:00:13]} Be5 {[%clk 00:04:43]} {[%emt 00:00:11]} 12. Bxe5 {[%clk 00:03:59]}
{[%emt 00:00:10]} Nxe5 {[%clk 00:04:46]} 13. f4 {[%clk 00:03:48]} {[%emt
00:00:14]} Ng4 {[%clk 00:03:29]} {[%emt 00:01:19]} 14. Qe2 {[%clk 00:03:49]}
{[%emt 00:00:02]} b5 {[%clk 00:03:22]} {[%emt 00:00:11]} 15. a4 {[%clk
00:03:35]} {[%emt 00:00:17]} bxa4 {[%clk 00:03:23]} {[%emt 00:00:02]} 16. Rxa4
{[%clk 00:03:35]} {[%emt 00:00:02]} O-O {[%clk 00:03:21]} {[%emt 00:00:06]} 17.
Nf3 {[%clk 00:03:21]} {[%emt 00:00:16]} h6 {[%clk 00:02:49]} {[%emt 00:00:35]}
18. Ra5 {[%clk 00:02:45]} {[%emt 00:00:39]} Bb7 {[%clk 00:02:41]} {[%emt
00:00:12]} 19. Qg2 {[%clk 00:02:46]} Qxg2+ {[%clk 00:02:42]} {[%emt 00:00:02]}
20. Kxg2 {[%emt 00:00:02]} Ne3+ 21. Kf2 {[%clk 00:02:45]} {[%emt 00:00:05]}
Nxf1 {[%clk 00:02:46]} {[%emt 00:00:02]} 22. Kxf1 {[%clk 00:02:47]} d6 {[%clk
00:02:30]} {[%emt 00:00:19]} 23. Ke2 {[%clk 00:02:41]} {[%emt 00:00:09]} Rfc8
{[%clk 00:02:33]} 24. Ke3 {[%clk 00:02:44]} Rc5 {[%clk 00:02:30]} {[%emt
00:00:07]} 25. Ra4 {[%clk 00:02:40]} {[%emt 00:00:07]} a5 {[%clk 00:02:30]}
{[%emt 00:00:03]} 26. Nd4 {[%clk 00:02:31]} {[%emt 00:00:11]} Kf8 {[%clk
00:02:24]} {[%emt 00:00:09]} 27. f5 {[%clk 00:02:11]} {[%emt 00:00:23]} e5
{[%clk 00:02:19]} {[%emt 00:00:08]} 28. Ne2 {[%clk 00:02:03]} {[%emt 00:00:11]}
d5 {[%clk 00:02:00]} {[%emt 00:00:22]} 29. exd5 {[%clk 00:02:00]} {[%emt
00:00:05]} Bxd5 {[%clk 00:02:03]} 30. c4 {[%clk 00:01:40]} {[%emt 00:00:24]}
Bc6 {[%clk 00:02:05]} 31. Ra3 {[%clk 00:01:42]} e4 {[%clk 00:01:55]} {[%emt
00:00:13]} 32. Bc2 {[%clk 00:01:37]} {[%emt 00:00:08]} Rxf5 {[%clk 00:01:53]}
{[%emt 00:00:06]} 33. Nd4 {[%clk 00:01:38]} {[%emt 00:00:01]} Rf6 {[%clk
00:01:55]} 34. Nxc6 {[%clk 00:01:38]} {[%emt 00:00:03]} Rxc6 {[%clk 00:01:58]}
35. Bxe4 {[%emt 00:00:03]} Re8 36. Kf4 {[%clk 00:01:31]} {[%emt 00:00:10]} Rf6+
{[%clk 00:02:01]} {[%emt 00:00:03]} 0-1

[Event "7° Rencontres Internationales des Echecs Francophones"]
[Site "PARIS, France"]
[Date "2019.08.10"]
[Round "11.7"]
[White "Vuilleumier, Alexandre"]
[Black "Sebag, Marie"]
[Result "1/2-1/2"]
[TimeControl "90'+30' + 30seconds/move"]
[WhiteElo "2324"]
[BlackElo "2494"]

1. Nf3 {[%clk 00:05:05]} {[%emt 00:11:03]} d5 {[%clk 00:05:05]} 2. d4 {[%clk
00:05:07]} Nf6 {[%clk 00:05:06]} {[%emt 00:00:02]} 3. g3 {[%clk 00:05:10]} c6
{[%clk 00:05:05]} {[%emt 00:00:03]} 4. Bg2 {[%clk 00:05:11]} {[%emt 00:00:02]}
Bf5 {[%clk 00:05:07]} 5. O-O {[%clk 00:05:13]} {[%emt 00:00:02]} e6 {[%clk
00:05:09]} {[%emt 00:00:01]} 6. c4 {[%clk 00:05:14]} {[%emt 00:00:01]} h6
{[%clk 00:05:04]} {[%emt 00:00:08]} 7. Qb3 {[%clk 00:05:10]} {[%emt 00:00:07]}
Qb6 {[%clk 00:05:02]} {[%emt 00:00:05]} 8. Nc3 {[%clk 00:04:56]} {[%emt
00:00:17]} Nbd7 {[%clk 00:04:59]} {[%emt 00:00:06]} 9. Bf4 {[%clk 00:04:44]}
{[%emt 00:00:15]} Be7 {[%clk 00:04:59]} {[%emt 00:00:03]} 10. h3 {[%clk
00:04:36]} {[%emt 00:00:11]} O-O {[%clk 00:04:59]} {[%emt 00:00:03]} 11. g4
{[%clk 00:04:37]} {[%emt 00:00:02]} Bg6 {[%clk 00:04:40]} {[%emt 00:00:23]} 12.
c5 {[%clk 00:03:47]} {[%emt 00:00:53]} Qa6 {[%clk 00:03:51]} {[%emt 00:00:52]}
13. Qa4 {[%clk 00:03:38]} {[%emt 00:00:11]} Qxa4 {[%clk 00:02:54]} {[%emt
00:01:01]} 14. Nxa4 {[%clk 00:03:40]} Ne4 {[%clk 00:02:53]} {[%emt 00:00:04]}
15. Rfc1 {[%clk 00:03:16]} {[%emt 00:00:27]} Rfe8 {[%clk 00:02:43]} {[%emt
00:00:14]} 16. e3 {[%clk 00:03:10]} {[%emt 00:00:08]} f6 {[%clk 00:02:14]}
{[%emt 00:00:32]} 17. Bh2 {[%clk 00:02:46]} {[%emt 00:00:28]} Bd8 {[%clk
00:02:12]} {[%emt 00:00:05]} 18. Nh4 {[%clk 00:02:06]} {[%emt 00:00:43]} Bh7
{[%clk 00:02:10]} {[%emt 00:00:05]} 19. f3 {[%clk 00:02:07]} {[%emt 00:00:02]}
Ng5 {[%clk 00:01:55]} {[%emt 00:00:18]} 20. Kf2 {[%clk 00:01:57]} {[%emt
00:00:12]} f5 {[%clk 00:01:46]} {[%emt 00:00:12]} 21. Bg3 {[%clk 00:01:46]}
{[%emt 00:00:14]} fxg4 {[%clk 00:01:23]} {[%emt 00:00:27]} 22. hxg4 {[%clk
00:01:47]} {[%emt 00:00:02]} e5 {[%clk 00:01:23]} {[%emt 00:00:02]} 23. Nc3
{[%clk 00:01:10]} {[%emt 00:00:40]} Bf6 {[%clk 00:00:46]} {[%emt 00:00:41]} 24.
Ne2 {[%clk 00:00:48]} {[%emt 00:00:25]} Ne6 {[%clk 00:00:31]} {[%emt 00:00:18]}
25. Nf5 {[%clk 00:00:41]} {[%emt 00:00:10]} Bxf5 {[%clk 00:00:25]} {[%emt
00:00:09]} 26. gxf5 {[%clk 00:00:42]} Nd8 {[%clk 00:00:26]} {[%emt 00:00:03]}
27. Rab1 {[%clk 00:00:31]} {[%emt 00:00:14]} Nf7 {[%clk 00:00:27]} 28. b4
{[%clk 00:00:32]} {[%emt 00:00:03]} a6 {[%clk 00:00:29]} 29. a4 {[%clk
00:00:34]} Re7 {[%clk 00:00:31]} {[%emt 00:00:01]} 30. Rc2 {[%clk 00:00:27]}
{[%emt 00:00:10]} Rae8 {[%clk 00:00:31]} {[%emt 00:00:02]} 31. b5 {[%clk
00:00:25]} {[%emt 00:00:06]} axb5 {[%clk 00:00:33]} 32. axb5 {[%clk 00:00:27]}
exd4 {[%clk 00:00:35]} 33. exd4 {[%clk 00:00:21]} {[%emt 00:00:10]} Rxe2+
{[%clk 00:00:26]} {[%emt 00:00:12]} 34. Rxe2 Bxd4+ {[%clk 00:00:28]} 35. Kf1
{[%clk 00:00:21]} {[%emt 00:00:03]} Rxe2 {[%clk 00:00:30]} {[%emt 00:00:02]} 36.
Kxe2 {[%clk 00:00:23]} Bxc5 {[%clk 00:00:32]} {[%emt 00:00:01]} 37. bxc6 {[%clk
00:00:17]} {[%emt 00:00:09]} bxc6 {[%clk 00:00:34]} 38. Rb7 {[%clk 00:00:18]}
Nde5 {[%clk 00:00:33]} {[%emt 00:00:04]} 39. f4 {[%clk 00:00:16]} {[%emt
00:00:05]} Nc4 {[%clk 00:00:23]} {[%emt 00:00:13]} 40. Rc7 {[%clk 00:00:16]}
{[%emt 00:00:02]} Ne3 {[%clk 00:00:15]} {[%emt 00:00:12]} 41. Bf2 {[%clk
00:00:15]} {[%emt 00:00:04]} Nxg2 {[%clk 00:00:15]} {[%emt 00:00:04]} 42. Bxc5
{[%clk 00:00:17]} Nxf4+ {[%clk 00:00:16]} {[%emt 00:00:02]} 43. Kf3 {[%clk
00:00:19]} Nd3 {[%clk 00:00:18]} {[%emt 00:00:02]} 44. Bd4 {[%clk 00:00:15]}
{[%emt 00:00:06]} Nde5+ {[%clk 00:00:19]} {[%emt 00:00:03]} 45. Kf4 {[%clk
00:00:14]} {[%emt 00:00:04]} Nd3+ {[%clk 00:00:21]} {[%emt 00:00:01]} 46. Ke3
{[%clk 00:00:15]} Nde5 {[%clk 00:00:22]} {[%emt 00:00:02]} 47. Kf4 {[%clk
00:00:12]} {[%emt 00:00:06]} Nd3+ {[%clk 00:00:24]} 48. Ke3 {[%clk 00:00:15]}
Nde5 {[%clk 00:00:26]} {[%emt 00:00:01]} 49. Bxe5 {[%clk 00:00:14]} {[%emt
00:00:03]} Nxe5 {[%clk 00:00:28]} 50. Kd4 {[%clk 00:00:17]} Nf3+ {[%clk
00:00:29]} {[%emt 00:00:03]} 51. Ke3 {[%clk 00:00:16]} {[%emt 00:00:03]} Ne5
{[%clk 00:00:28]} {[%emt 00:00:04]} 52. Kf4 {[%clk 00:00:18]} Nd3+ {[%clk
00:00:30]} 53. Ke3 {[%clk 00:00:21]} Ne5 {[%clk 00:00:32]} {[%emt 00:00:01]} 54.
Kf4 {[%clk 00:00:18]} {[%emt 00:00:06]} Nd3+ {[%clk 00:00:35]} 55. Ke3 {[%clk
00:00:20]} Ne5 {[%clk 00:00:36]} {[%emt 00:00:03]} 56. Kf4 {[%clk 00:00:22]}
1/2-1/2

[Event "7° Rencontres Internationales des Echecs Francophones"]
[Site "PARIS, France"]
[Date "2019.08.10"]
[Round "11.5"]
[White "Sochacki, Christophe"]
[Black "Le Roux, Jean-Pierre"]
[Result "1-0"]
[TimeControl "90'+30' + 30seconds/move"]
[WhiteElo "2443"]
[BlackElo "2535"]

1. b3 {[%clk 00:05:04]} d5 {[%clk 00:04:57]} {[%emt 00:00:09]} 2. Nf3 {[%clk
00:05:05]} {[%emt 00:00:01]} c5 {[%clk 00:04:58]} {[%emt 00:00:03]} 3. Bb2
{[%clk 00:05:07]} {[%emt 00:00:01]} f6 {[%clk 00:05:00]} 4. Nc3 {[%clk
00:04:54]} {[%emt 00:00:16]} Nc6 {[%clk 00:04:53]} {[%emt 00:00:10]} 5. e3
{[%clk 00:04:17]} {[%emt 00:00:40]} a6 {[%clk 00:04:54]} {[%emt 00:00:02]} 6.
d4 {[%clk 00:04:17]} {[%emt 00:00:02]} e6 {[%clk 00:04:00]} {[%emt 00:00:57]} 7.
Bd3 {[%clk 00:04:15]} {[%emt 00:00:05]} Bd6 {[%clk 00:03:48]} {[%emt 00:00:15]}
8. O-O {[%clk 00:03:52]} {[%emt 00:00:27]} Nge7 {[%clk 00:03:42]} {[%emt
00:00:08]} 9. dxc5 {[%clk 00:03:47]} {[%emt 00:00:08]} Bxc5 {[%clk 00:03:44]}
{[%emt 00:00:02]} 10. e4 {[%clk 00:03:48]} {[%emt 00:00:01]} d4 {[%clk
00:03:40]} {[%emt 00:00:07]} 11. Ne2 {[%clk 00:03:46]} {[%emt 00:00:05]} e5
{[%clk 00:03:40]} {[%emt 00:00:03]} 12. c3 {[%clk 00:03:27]} {[%emt 00:00:22]}
dxc3 {[%clk 00:03:38]} {[%emt 00:00:05]} 13. Nxc3 {[%clk 00:03:24]} {[%emt
00:00:05]} Be6 {[%clk 00:03:38]} {[%emt 00:00:03]} 14. Rc1 {[%clk 00:03:11]}
{[%emt 00:00:17]} Ba7 {[%clk 00:03:35]} {[%emt 00:00:06]} 15. Bc4 {[%clk
00:03:09]} {[%emt 00:00:05]} Bxc4 {[%clk 00:03:10]} {[%emt 00:00:27]} 16. bxc4
{[%clk 00:03:11]} {[%emt 00:00:02]} O-O {[%clk 00:03:11]} {[%emt 00:00:02]} 17.
Nd5 {[%clk 00:03:03]} {[%emt 00:00:11]} Bc5 {[%clk 00:02:48]} {[%emt 00:00:26]}
18. Qb3 {[%clk 00:02:55]} {[%emt 00:00:12]} Rb8 {[%clk 00:02:02]} {[%emt
00:00:49]} 19. Rcd1 {[%clk 00:02:47]} {[%emt 00:00:10]} Qe8 {[%clk 00:01:29]}
{[%emt 00:00:36]} 20. Ba3 {[%clk 00:02:48]} {[%emt 00:00:02]} b6 {[%clk
00:01:17]} {[%emt 00:00:16]} 21. Rfe1 {[%clk 00:02:20]} {[%emt 00:00:30]} Kh8
{[%clk 00:01:17]} {[%emt 00:00:04]} 22. Bxc5 {[%clk 00:01:24]} {[%emt
00:00:58]} bxc5 {[%clk 00:01:17]} {[%emt 00:00:03]} 23. Qa3 Nb4 {[%clk
00:00:51]} {[%emt 00:00:28]} 24. Qa5 {[%clk 00:01:24]} {[%emt 00:00:06]} Nc2
{[%clk 00:00:31]} {[%emt 00:00:23]} 25. Re2 {[%clk 00:01:03]} {[%emt 00:00:24]}
Nd4 {[%clk 00:00:33]} {[%emt 00:00:02]} 26. Re3 {[%clk 00:00:54]} {[%emt
00:00:12]} Nxd5 {[%clk 00:00:21]} {[%emt 00:00:14]} 27. exd5 {[%clk 00:00:51]}
{[%emt 00:00:06]} Qc8 {[%clk 00:00:23]} 28. h3 {[%clk 00:00:33]} {[%emt
00:00:22]} h6 {[%clk 00:00:26]} 29. Ra3 {[%clk 00:00:34]} Rb4 {[%clk 00:00:21]}
{[%emt 00:00:08]} 30. Nxd4 {[%clk 00:00:29]} {[%emt 00:00:08]} exd4 {[%clk
00:00:19]} {[%emt 00:00:05]} 31. Ra4 {[%clk 00:00:18]} {[%emt 00:00:14]} Rxa4
{[%clk 00:00:18]} {[%emt 00:00:04]} 32. Qxa4 {[%clk 00:00:20]} Qb7 {[%clk
00:00:18]} {[%emt 00:00:03]} 33. Qa5 {[%clk 00:00:17]} {[%emt 00:00:06]} Rc8
{[%clk 00:00:19]} {[%emt 00:00:02]} 34. Re1 {[%clk 00:00:17]} {[%emt 00:00:04]}
Kh7 {[%clk 00:00:11]} {[%emt 00:00:11]} 35. Qa3 {[%emt 00:00:07]} Qc7 {[%clk
00:00:07]} {[%emt 00:00:05]} 36. Qxa6 {[%emt 00:00:08]} Qf4 {[%clk 00:00:07]}
{[%emt 00:00:03]} 37. Qxc8 {[%clk 00:00:10]} {[%emt 00:00:03]} 1-0